fUST/lending_fUST_20260109
["ID","MTS","AMOUNT","RATE_DAILY","PERIOD"]
[401072635,1767904244212,-450.0,0.00029041,5]
[401072637,1767904244221,-450.0,0.00029041,5]
[401072639,1767904244230,-5019.57887175,0.00029083,2]
[401072641,1767904244238,-900.0,0.00029085,7]
[401072643,1767904244247,-1118.0,0.00029156,2]
[401072645,1767904244256,-1201.004146,0.00029222,30]
[401072647,1767904244265,-600.9658097,0.0002926,30]
[401072649,1767904244276,-168.0,0.00029377,2]
[401072651,1767904244286,-1041.66666667,0.000294,7]
[401072653,1767904244295,-168.0,0.00029436,2]
[401072655,1767904244305,-2000.0,0.00029447,7]
[401072657,1767904244314,-3455.33251589,0.00029453,2]
[401072659,1767904244323,-4938.1382699,0.00029461,2]
[401072661,1767904244333,-347.0,0.00029476,7]
[401072663,1767904244342,-347.0,0.00029476,7]
[401072665,1767904244351,-376.65305407,0.00029476,7]
[401072667,1767904244360,-5060.38784804,0.000295,2]
[401072669,1767904244370,-346.40030578,0.00029507,2]
[401072671,1767904244378,-330.23629125,0.00029507,2]
[401072673,1767904244387,-371.08419464,0.00029507,2]
[401072675,1767904244396,-162.45575827,0.00029507,2]
[401072677,1767904244406,-152.0,0.00029521,7]
[401072679,1767904244414,-151.0,0.00029521,7]
[401072681,1767904244423,-152.0,0.00029521,7]
[401072683,1767904244433,-152.0,0.00029521,7]
[401072685,1767904244442,-152.0,0.00029521,7]
[401072687,1767904244451,-163.0,0.00029521,7]
[401072689,1767904244461,-152.0,0.00029521,7]
[401072691,1767904244470,-204.62288337,0.00029521,7]
[401072693,1767904244479,-152.0,0.00029521,7]
[401072695,1767904244488,-152.0,0.00029521,7]
[401072697,1767904244499,-284.0,0.00029521,7]
[401072699,1767904244509,-151.0,0.00029521,7]
[401072701,1767904244519,-151.0,0.00029521,7]
[401072703,1767904244528,-151.0,0.00029521,7]
[401072705,1767904244537,-151.0,0.00029521,7]
[401072707,1767904244546,-151.0,0.00029521,7]
[401072709,1767904244556,-151.0,0.00029521,7]
[401072711,1767904244565,-151.0,0.00029521,7]
[401072714,1767904244575,-151.0,0.00029521,7]
[401072716,1767904244584,-187.9115595,0.00029521,7]
[401072717,1767904244593,-347.0,0.00029521,7]
[401072719,1767904244602,-347.0,0.00029521,7]
[401072721,1767904244613,-200.38257444,0.00029521,7]
[401072723,1767904244622,-153.0,0.00029521,7]
[401072725,1767904244631,-151.0,0.00029521,7]
[401072728,1767904244641,-166.0,0.00029521,7]
[401072729,1767904244650,-347.0,0.00029521,7]
[401072731,1767904244660,-153.0,0.00029521,7]
[401072734,1767904244670,-151.0,0.00029521,7]
[401072735,1767904244679,-347.0,0.00029521,7]
[401072737,1767904244688,-166.0,0.00029521,7]
[401072739,1767904244697,-153.0,0.00029521,7]
[401072741,1767904244707,-336.0,0.00029521,7]
[401072744,1767904244716,-347.0,0.00029521,7]
[401072745,1767904244726,-166.0,0.00029521,7]
[401072747,1767904244735,-336.0,0.00029521,7]
[401072749,1767904244744,-153.0,0.00029521,7]
[401072752,1767904244753,-151.0,0.00029521,7]
[401072754,1767904244762,-347.0,0.00029521,7]
[401072756,1767904244771,-297.01652411,0.00029521,7]
[401072758,1767904244781,-336.0,0.00029521,7]
[401072760,1767904244794,-151.0,0.00029521,7]
[401072762,1767904244803,-347.0,0.00029521,7]
[401072763,1767904244813,-166.0,0.00029521,7]
[401072765,1767904244823,-336.0,0.00029521,7]
[401072767,1767904244833,-151.0,0.00029521,7]
[401072769,1767904244842,-347.0,0.00029521,7]
[401072772,1767904244852,-166.0,0.00029521,7]
[401072773,1767904244862,-336.0,0.00029521,7]
[401072775,1767904244871,-151.0,0.00029521,7]
[401072777,1767904244880,-347.0,0.00029521,7]
[401072780,1767904244890,-166.0,0.00029521,7]
[401072782,1767904244899,-151.0,0.00029521,7]
[401072784,1767904244908,-336.0,0.00029521,7]
[401072785,1767904244917,-347.0,0.00029521,7]
[401072787,1767904244926,-166.0,0.00029521,7]
[401072789,1767904244935,-151.0,0.00029521,7]
[401072791,1767904244945,-336.0,0.00029521,7]
[401072794,1767904244955,-347.0,0.00029521,7]
[401072796,1767904244966,-172.0,0.00029521,7]
[401072797,1767904244975,-151.0,0.00029521,7]
[401072799,1767904244984,-336.0,0.00029521,7]
[401072801,1767904244994,-347.0,0.00029521,7]
[401072803,1767904245003,-151.0,0.00029521,7]
[401072805,1767904245012,-336.0,0.00029521,7]
[401072807,1767904245021,-347.0,0.00029521,7]
[401072809,1767904245030,-151.0,0.00029521,7]
[401072811,1767904245039,-336.0,0.00029521,7]
[401072813,1767904245048,-347.0,0.00029521,7]
[401072815,1767904245057,-151.0,0.00029521,7]
[401072818,1767904245068,-336.0,0.00029521,7]
[401072820,1767904245077,-347.0,0.00029521,7]
[401072822,1767904245087,-151.0,0.00029521,7]
[401072824,1767904245095,-347.0,0.00029521,7]
[401072826,1767904245104,-336.0,0.00029521,7]
[401072828,1767904245113,-151.0,0.00029521,7]
[401072830,1767904245122,-336.0,0.00029521,7]
[401072832,1767904245131,-151.0,0.00029521,7]
[401072834,1767904245140,-336.0,0.00029521,7]
[401072836,1767904245150,-347.0,0.00029521,7]
[401072837,1767904245159,-151.0,0.00029521,7]
[401072840,1767904245169,-336.0,0.00029521,7]
[401072842,1767904245179,-347.0,0.00029521,7]
[401072843,1767904245188,-151.0,0.00029521,7]
[401072845,1767904245198,-336.0,0.00029521,7]
[401072848,1767904245209,-347.0,0.00029521,7]
[401072849,1767904245219,-151.0,0.00029521,7]
[401072851,1767904245228,-336.0,0.00029521,7]
[401072853,1767904245237,-151.0,0.00029521,7]
[401072855,1767904245247,-347.0,0.00029521,7]
[401072857,1767904245256,-336.0,0.00029521,7]
[401072859,1767904245267,-347.0,0.00029521,7]
[401072861,1767904245277,-151.0,0.00029521,7]
[401072863,1767904245286,-336.0,0.00029521,7]
[401072865,1767904245296,-347.0,0.00029521,7]
[401072867,1767904245306,-151.0,0.00029521,7]
[401072869,1767904245316,-336.0,0.00029521,7]
[401072871,1767904245325,-347.0,0.00029521,7]
[401072873,1767904245334,-151.0,0.00029521,7]
[401072875,1767904245344,-336.0,0.00029521,7]
[401072877,1767904245353,-347.0,0.00029521,7]
[401072879,1767904245363,-151.0,0.00029521,7]
[401072881,1767904245372,-336.0,0.00029521,7]
[401072883,1767904245382,-151.0,0.00029521,7]
[401072885,1767904245391,-347.0,0.00029521,7]
[401072887,1767904245401,-336.0,0.00029521,7]
[401072889,1767904245411,-151.0,0.00029521,7]
[401072891,1767904245420,-347.0,0.00029521,7]
[401072893,1767904245429,-336.0,0.00029521,7]
[401072895,1767904245438,-151.0,0.00029521,7]
[401072897,1767904245447,-347.0,0.00029521,7]
[401072899,1767904245456,-151.0,0.00029521,7]
[401072901,1767904245465,-336.0,0.00029521,7]
[401072903,1767904245474,-151.0,0.00029521,7]
[401072905,1767904245483,-347.0,0.00029521,7]
[401072907,1767904245491,-336.0,0.00029521,7]
[401072909,1767904245500,-151.0,0.00029521,7]
[401072911,1767904245509,-347.0,0.00029521,7]
[401072913,1767904245519,-336.0,0.00029521,7]
[401072915,1767904245527,-153.05483042,0.00029521,7]
[401072917,1767904245537,-347.0,0.00029521,7]
[401072919,1767904245546,-336.0,0.00029521,7]
[401072921,1767904245555,-439.14173406,0.00029521,7]
[401072923,1767904245564,-347.0,0.00029521,7]
[401072925,1767904245573,-347.0,0.00029521,7]
[401072927,1767904245582,-347.0,0.00029521,7]
[401072929,1767904245592,-347.0,0.00029521,7]
[401072931,1767904245601,-550.0,0.00029589,5]
[401072933,1767904245611,-550.0,0.00029589,5]
[401072935,1767904245620,-343.06,0.000296,7]
[401072937,1767904245629,-151.0,0.00029646,3]
[401072939,1767904245638,-371.08419464,0.00029684,9]
[401072941,1767904245647,-346.40030578,0.00029684,9]
[401072943,1767904245658,-114558.69335523,0.000297,2]
[401072946,1767904245677,-8337.06688469,0.000297,2]
[401072952,1767904245720,-10957.98140471,0.00018089,2]
[401072954,1767904245730,-350.27052168,0.00018089,2]
[401072956,1767904245741,-38691.74807361,0.00018089,2]
[401072958,1767904245750,-51312.58182639,0.000297,2]
[401072960,1767904245761,-1437.29746005,0.000297,2]
[401072967,1767904245814,-254.01130894,0.000297,2]
[401072976,1767904245887,-546.81039715,0.000297,2]
[401072978,1767904245898,-564.67278926,0.000297,2]
[401072980,1767904245909,-824.729486,0.000297,2]
[401072984,1767904245934,-6006.5728958,0.000297,2]
[401072986,1767904245945,-1629.86680591,0.000297,2]
[401073022,1767904246437,-802.84844993,0.000297,2]
[401073044,1767904246639,-28060.96804245,0.000297,2]
[401073046,1767904246650,-15648.4925602,0.000297,2]
[401073048,1767904246662,-3127.52229615,0.000297,2]
[401073263,1767904938356,10000.0,9.096e-05,2]
[401073264,1767904946505,0.01,9.096e-05,2]
[401073265,1767904946526,9999.99,9.096e-05,2]
[401073266,1767904967972,0.02,9.096e-05,2]
[401073267,1767904968001,1812.14,9.096e-05,2]
[401073296,1767905431598,-350.004,0.00011834,2]
[401073298,1767905431608,-587.0,0.00011834,2]
[401073300,1767905431617,-313.45668845,0.00011869,2]
[401073303,1767905431627,-300.0,0.00011974,2]
[401073305,1767905431637,-1200.0,0.00011974,2]
[401073307,1767905431646,-6262.15567415,0.00011975,2]
[401073309,1767905431656,-47710.22286304,0.00011975,2]
[401073311,1767905431667,-4579.83151419,0.00011975,2]
[401073314,1767905431677,-1326.0,0.00011975,2]
[401073317,1767905431688,-997.14197923,0.00011975,2]
[401073319,1767905431699,-10028.9904256,0.00011975,2]
[401073322,1767905431708,-5012.19132451,0.00012,2]
[401073325,1767905431718,-712.06243302,0.00012073,2]
[401073328,1767905431727,-30360.17814955,0.00012073,2]
[401073395,1767905437715,-19639.82185045,0.00012073,2]
[401073396,1767905437729,-495.32413643,0.00012074,2]
[401073397,1767905437740,-500.0,0.00012074,2]
[401073398,1767905437753,-422.3737852,0.00012074,2]
[401073399,1767905437763,-408.90301924,0.00012074,2]
[401073400,1767905437774,-151.0,0.000121,2]
[401073401,1767905437786,-300.0,0.00012316,2]
[401073402,1767905437797,-300.0,0.00012316,2]
[401073403,1767905437808,-300.0,0.00012316,2]
[401073404,1767905437819,-300.0,0.00012316,2]
[401073405,1767905437832,-300.0,0.00012316,2]
[401073406,1767905437844,-300.0,0.00012316,2]
[401073407,1767905437855,-300.0,0.00012316,2]
[401073409,1767905437867,-300.0,0.00012316,2]
[401073411,1767905437877,-300.0,0.00012316,2]
[401073412,1767905437887,-300.0,0.00012316,2]
[401073413,1767905437898,-300.0,0.00012316,2]
[401073414,1767905437909,-300.0,0.00012316,2]
[401073415,1767905437919,-300.0,0.00012316,2]
[401073416,1767905437930,-300.0,0.00012316,2]
[401073417,1767905437941,-300.0,0.00012316,2]
[401073418,1767905437953,-600.0,0.00012316,2]
[401073419,1767905437964,-2042.32527959,0.00012842,2]
[401073420,1767905437976,-420.0,0.00013145,2]
[401073422,1767905437987,-1254.917095,0.00013157,2]
[401073423,1767905437997,-500.0,0.00013273,2]
[401073424,1767905438009,-500.0,0.00013273,2]
[401073425,1767905438020,-500.0,0.00013273,2]
[401073426,1767905438032,-500.0,0.00013273,2]
[401073427,1767905438044,-500.0,0.00013273,2]
[401073428,1767905438057,-500.0,0.00013273,2]
[401073429,1767905438068,-500.0,0.00013273,2]
[401073430,1767905438078,-504.7840936,0.00013273,2]
[401073431,1767905438088,-500.0,0.00013273,2]
[401073432,1767905438101,-500.0,0.00013273,2]
[401073433,1767905438111,-500.0,0.00013273,2]
[401073434,1767905438121,-500.0,0.00013273,2]
[401073435,1767905438131,-500.0,0.00013273,2]
[401073436,1767905438144,-500.0,0.00013273,2]
[401073437,1767905438157,-500.0,0.00013273,2]
[401073438,1767905438169,-500.0,0.00013273,2]
[401073439,1767905438181,-500.0,0.00013273,2]
[401073440,1767905438191,-500.0,0.00013273,2]
[401073441,1767905438200,-500.0,0.00013273,2]
[401073442,1767905438211,-500.0,0.00013273,2]
[401073443,1767905438222,-500.0,0.00013273,2]
[401073444,1767905438233,-500.0,0.00013273,2]
[401073445,1767905438244,-500.0,0.00013273,2]
[401073446,1767905438255,-500.0,0.00013273,2]
[401073447,1767905438266,-500.0,0.00013273,2]
[401073448,1767905438277,-500.0,0.00013273,2]
[401073449,1767905438288,-500.0,0.00013273,2]
[401073450,1767905438298,-501.77913304,0.00013273,2]
[401073451,1767905438309,-501.96575102,0.00013273,2]
[401073452,1767905438320,-500.0,0.00013273,2]
[401073453,1767905438330,-500.0,0.00013273,2]
[401073454,1767905438342,-500.0,0.00013273,2]
[401073455,1767905438352,-500.0,0.00013273,2]
[401073456,1767905438363,-500.0,0.00013273,2]
[401073457,1767905438375,-500.0,0.00013273,2]
[401073458,1767905438385,-500.0,0.00013273,2]
[401073459,1767905438396,-500.0,0.00013273,2]
[401073460,1767905438407,-500.0,0.00013273,2]
[401073461,1767905438419,-500.0,0.00013273,2]
[401073462,1767905438429,-500.0,0.00013273,2]
[401073463,1767905438440,-500.0,0.00013273,2]
[401073464,1767905438451,-500.0,0.00013273,2]
[401073465,1767905438462,-453.31002908,0.00013273,2]
[401073466,1767905438473,-500.0,0.00013273,2]
[401073467,1767905438483,-222.0,0.00013273,2]
[401073468,1767905438494,-222.0,0.00013547,2]
[401073469,1767905438505,-720.0,0.00013548,2]
[401073470,1767905438516,-300.0,0.00013673,2]
[401073471,1767905438526,-1000.0,0.00013699,2]
[401073472,1767905438537,-500.0,0.00013699,2]
[401073473,1767905438548,-500.0,0.00013699,2]
[401073474,1767905438559,-434.10134692,0.00013699,2]
[401073475,1767905438570,-500.0,0.00013699,2]
[401073476,1767905438580,-160.9556774,0.00013699,2]
[401073477,1767905438591,-500.0,0.00013699,2]
[401073478,1767905438601,-500.0,0.00013699,2]
[401073479,1767905438612,-500.0,0.00013699,2]
[401073480,1767905438622,-500.0,0.00013699,2]
[401073481,1767905438633,-500.0,0.00013699,2]
[401073482,1767905438644,-500.0,0.00013699,2]
[401073483,1767905438654,-500.0,0.00013699,2]
[401073484,1767905438665,-500.0,0.00013699,2]
[401073485,1767905438675,-500.0,0.00013699,2]
[401073486,1767905438686,-500.0,0.00013699,2]
[401073487,1767905438697,-500.0,0.00013699,2]
[401073488,1767905438708,-500.0,0.00013699,2]
[401073489,1767905438719,-500.0,0.00013699,2]
[401073490,1767905438730,-500.0,0.00013699,2]
[401073491,1767905438741,-500.0,0.00013699,2]
[401073492,1767905438751,-566.10905735,0.00013699,2]
[401073493,1767905438762,-500.0,0.00013699,2]
[401073494,1767905438772,-500.0,0.00013699,2]
[401073495,1767905438783,-500.0,0.00013699,2]
[401073496,1767905438795,-500.0,0.00013699,2]
[401073497,1767905438805,-500.0,0.00013699,2]
[401073498,1767905438816,-500.0,0.00013699,2]
[401073499,1767905438827,-500.0,0.00013699,2]
[401073500,1767905438838,-500.0,0.00013699,2]
[401073501,1767905438849,-500.0,0.00013699,2]
[401073502,1767905438860,-500.0,0.00013699,2]
[401073503,1767905438871,-171.21056223,0.00013699,2]
[401073504,1767905438882,-500.0,0.00013699,2]
[401073505,1767905438894,-500.57472158,0.00013699,2]
[401073506,1767905438905,-500.0,0.00013699,2]
[401073507,1767905438915,-500.0,0.00013699,2]
[401073508,1767905438926,-500.0,0.00013699,2]
[401073509,1767905438936,-500.0,0.00013699,2]
[401073510,1767905438947,-500.0,0.00013699,2]
[401073511,1767905438958,-500.0,0.00013699,2]
[401073512,1767905438970,-500.0,0.00013699,2]
[401073513,1767905438982,-500.0,0.00013699,2]
[401073514,1767905438994,-500.0,0.00013699,2]
[401073515,1767905439005,-500.0,0.00013699,2]
[401073516,1767905439017,-500.0,0.00013699,2]
[401073517,1767905439028,-500.0,0.00013699,2]
[401073518,1767905439039,-500.0,0.00013699,2]
[401073519,1767905439049,-310.37151762,0.00013699,2]
[401073520,1767905439060,-500.0,0.00013699,2]
[401073521,1767905439072,-456.27081693,0.00013699,2]
[401073522,1767905439083,-500.0,0.00013699,2]
[401073523,1767905439096,-500.0,0.00013699,2]
[401073524,1767905439108,-500.0,0.00013699,2]
[401073525,1767905439119,-500.0,0.00013699,2]
[401073526,1767905439130,-500.0,0.00013699,2]
[401073527,1767905439142,-500.0,0.00013699,2]
[401073528,1767905439153,-500.0,0.00013699,2]
[401073529,1767905439164,-500.0,0.00013699,2]
[401073530,1767905439176,-500.0,0.00013699,2]
[401073531,1767905439186,-500.0,0.00013699,2]
[401073532,1767905439196,-163.82427234,0.00013699,2]
[401073533,1767905439205,-500.0,0.00013699,2]
[401073534,1767905439214,-500.0,0.00013699,2]
[401073535,1767905439224,-500.0,0.00013699,2]
[401073536,1767905439234,-500.0,0.00013699,2]
[401073537,1767905439243,-500.0,0.00013699,2]
[401073538,1767905439253,-501.43129902,0.00013699,2]
[401073539,1767905439262,-500.0,0.00013699,2]
[401073540,1767905439271,-500.0,0.00013699,2]
[401073541,1767905439280,-347.95522048,0.00013699,2]
[401073542,1767905439289,-500.0,0.00013699,2]
[401073543,1767905439298,-500.0,0.00013699,2]
[401073544,1767905439517,-500.0,0.00013699,2]
[401073545,1767905439529,-500.0,0.00013699,2]
[401073546,1767905439538,-500.0,0.00013821,2]
[401073547,1767905439547,-1000.0,0.00013821,2]
[401073548,1767905439556,-500.0,0.00013821,2]
[401073549,1767905439565,-500.0,0.00013821,2]
[401073550,1767905439574,-500.0,0.00013821,2]
[401073551,1767905439584,-500.0,0.00013821,2]
[401073552,1767905439593,-500.0,0.00013821,2]
[401073553,1767905439602,-1000.0,0.00013821,2]
[401073554,1767905439611,-500.0,0.00013821,2]
[401073555,1767905439620,-1000.0,0.00013821,2]
[401073556,1767905439630,-1000.0,0.00013821,2]
[401073557,1767905439640,-1000.0,0.00013821,2]
[401073558,1767905439649,-501.65991965,0.00013821,2]
[401073559,1767905439659,-1066.54320047,0.00013821,2]
[401073560,1767905439667,-1000.0,0.00013821,2]
[401073561,1767905439677,-1000.0,0.00013821,2]
[401073562,1767905439686,-1000.0,0.00013821,2]
[401073563,1767905439695,-1000.0,0.00013821,2]
[401073564,1767905439704,-1000.0,0.00013821,2]
[401073565,1767905439714,-1000.0,0.00013821,2]
[401073566,1767905439723,-1000.0,0.00013821,2]
[401073567,1767905439732,-500.0,0.00013821,2]
[401073568,1767905439741,-500.0,0.00013821,2]
[401073569,1767905439751,-1000.0,0.00013821,2]
[401073570,1767905439760,-1000.0,0.00013821,2]
[401073571,1767905439769,-501.21467235,0.00013821,2]
[401073572,1767905439778,-1000.0,0.00013821,2]
[401073573,1767905439788,-500.0,0.00013821,2]
[401073574,1767905439798,-500.0,0.00013821,2]
[401073576,1767905439807,-500.0,0.00013821,2]
[401073578,1767905439816,-1000.0,0.00013821,2]
[401073580,1767905439825,-1000.0,0.00013821,2]
[401073582,1767905439834,-1000.0,0.00013821,2]
[401073585,1767905439843,-1000.54154278,0.00013821,2]
[401073587,1767905439852,-500.0,0.00013821,2]
[401073588,1767905439861,-202.16229251,0.00013821,2]
[401073590,1767905439870,-500.0,0.00013821,2]
[401073593,1767905439880,-647.44937683,0.00013821,2]
[401073594,1767905439890,-500.0,0.00013821,2]
[401073597,1767905439899,-500.0,0.00013821,2]
[401073598,1767905439908,-5000.0,0.0001386,2]
[401073600,1767905439917,-369.87889237,0.00013869,2]
[401073602,1767905439926,-318.0,0.00014192,2]
[401073604,1767905439935,-600.0,0.00014221,2]
[401073606,1767905439945,-655.09397851,0.00014247,2]
[401073608,1767905439955,-500.0,0.00014247,2]
[401073611,1767905439964,-1000.0,0.00014247,2]
[401073613,1767905439973,-1000.0,0.00014247,2]
[401073614,1767905439983,-500.0,0.00014247,2]
[401073617,1767905440001,-611.568419,0.00014247,2]
[401073618,1767905440019,-500.0,0.00014247,2]
[401073621,1767905440029,-413.35141242,0.00014247,2]
[401073624,1767905440040,-1000.0,0.00014247,2]
[401073626,1767905440049,-504.01306288,0.00014247,2]
[401073627,1767905440059,-1000.0,0.00014247,2]
[401073629,1767905440070,-192.36614921,0.00014247,2]
[401073632,1767905440080,-1001.8641087,0.00014247,2]
[401073635,1767905440091,-252.51325936,0.00014247,2]
[401073638,1767905440102,-1000.0,0.00014247,2]
[401073640,1767905440111,-1000.0,0.00014247,2]
[401073642,1767905440120,-890.27826644,0.00014247,2]
[401073644,1767905440130,-500.0,0.00014247,2]
[401073646,1767905440139,-1000.0,0.00014247,2]
[401073648,1767905440148,-1000.0,0.00014247,2]
[401073650,1767905440156,-1000.0,0.00014247,2]
[401073652,1767905440167,-1000.0,0.00014247,2]
[401073654,1767905440177,-1000.0,0.00014247,2]
[401073656,1767905440192,-1000.0,0.00014247,2]
[401073658,1767905440213,-189.99222472,0.00014247,2]
[401073660,1767905440230,-1000.0,0.00014247,2]
[401073662,1767905440240,-1002.96437935,0.00014247,2]
[401073664,1767905440251,-1000.0,0.00014247,2]
[401073666,1767905440261,-1000.0,0.00014247,2]
[401073668,1767905440271,-1000.0,0.00014247,2]
[401073670,1767905440281,-500.0,0.00014247,2]
[401073672,1767905440293,-1000.0,0.00014247,2]
[401073674,1767905440302,-500.0,0.00014247,2]
[401073676,1767905440314,-1000.0,0.00014247,2]
[401073679,1767905440325,-1018.32057392,0.00014247,2]
[401073681,1767905440335,-1000.0,0.00014247,2]
[401073683,1767905440346,-646.05055977,0.00014247,2]
[401073684,1767905440356,-1000.0,0.00014247,2]
[401073686,1767905440367,-1000.0,0.00014247,2]
[401073688,1767905440376,-1000.0,0.00014247,2]
[401073690,1767905440386,-874.8306527,0.00014247,2]
[401073692,1767905440396,-1000.0,0.00014247,2]
[401073694,1767905440406,-928.80611253,0.00014247,2]
[401073696,1767905440416,-250.0,0.00014247,2]
[401073698,1767905440425,-1000.0,0.00014247,2]
[401073700,1767905440436,-1000.0,0.00014247,2]
[401073702,1767905440446,-1000.0,0.00014247,2]
[401073704,1767905440457,-1000.0,0.00014247,2]
[401073706,1767905440469,-1000.0,0.00014247,2]
[401073708,1767905440480,-501.13148191,0.00014247,2]
[401073710,1767905440491,-1000.0,0.00014247,2]
[401073712,1767905440500,-1000.0,0.00014247,2]
[401073714,1767905440512,-500.61530681,0.00014247,2]
[401073717,1767905440522,-1000.0,0.00014247,2]
[401073719,1767905440531,-982.69771169,0.00014368,2]
[401073720,1767905440541,-1500.0,0.00014368,2]
[401073723,1767905440550,-1500.0,0.00014368,2]
[401073724,1767905440559,-370.82057374,0.00014368,2]
[401073726,1767905440568,-215.59305316,0.00014368,2]
[401073728,1767905440577,-1500.0,0.00014368,2]
[401073730,1767905440586,-1500.0,0.00014368,2]
[401073732,1767905440597,-1500.0,0.00014368,2]
[401073734,1767905440606,-1506.74415815,0.00014368,2]
[401073736,1767905440615,-1500.0,0.00014368,2]
[401073738,1767905440624,-1500.0,0.00014368,2]
[401073740,1767905440632,-1500.0,0.00014368,2]
[401073742,1767905440641,-1500.0,0.00014368,2]
[401073744,1767905440650,-1500.0,0.00014368,2]
[401073746,1767905440659,-783.80150252,0.00014368,2]
[401073748,1767905440669,-1500.0,0.00014368,2]
[401073750,1767905440679,-526.2364852,0.00014368,2]
[401073752,1767905440688,-1500.0,0.00014368,2]
[401073754,1767905440697,-587.0,0.0001443,2]
[401073756,1767905440706,-1190.210437,0.00014768,2]
[401073758,1767905440714,-900.0,0.00014768,2]
[401073760,1767905440723,-1500.0,0.00014795,2]
[401073762,1767905440733,-501.75744597,0.00014795,2]
[401073764,1767905440742,-1500.0,0.00014795,2]
[401073766,1767905440752,-1500.0,0.00014795,2]
[401073768,1767905440761,-1500.0,0.00014795,2]
[401073770,1767905440770,-661.95893033,0.00014795,2]
[401073772,1767905440779,-615.04672569,0.00014795,2]
[401073774,1767905440788,-501.33075681,0.00014795,2]
[401073776,1767905440797,-1474.34002557,0.00014795,2]
[401073778,1767905440806,-1500.0,0.00014795,2]
[401073780,1767905440815,-503.14554213,0.00014795,2]
[401073782,1767905440824,-500.0,0.00014795,2]
[401073784,1767905440834,-1029.61129365,0.00014795,2]
[401073786,1767905440843,-1500.0,0.00014795,2]
[401073788,1767905440852,-730.23234032,0.00014795,2]
[401073790,1767905440861,-1500.0,0.00014795,2]
[401073792,1767905440871,-421.00515568,0.00014795,2]
[401073794,1767905440880,-482.84709438,0.00014795,2]
[401073796,1767905440889,-1500.0,0.00014795,2]
[401073798,1767905440899,-1500.0,0.00014795,2]
[401073800,1767905440908,-1500.0,0.00014795,2]
[401073801,1767905440917,-1500.0,0.00014795,2]
[401073803,1767905440926,-350.0,0.00014795,2]
[401073805,1767905440935,-1500.0,0.00014795,2]
[401073807,1767905440944,-1500.0,0.00014795,2]
[401073809,1767905440953,-1506.84567032,0.00014795,2]
[401073811,1767905440962,-1500.0,0.00014795,2]
[401073813,1767905440971,-1500.0,0.00014795,2]
[401073815,1767905440980,-1000.0,0.00014795,2]
[401073817,1767905440989,-1500.0,0.00014795,2]
[401073820,1767905440999,-1500.0,0.00014795,2]
[401073822,1767905441008,-241.8331859,0.00014826,2]
[401073823,1767905441018,-152.0,0.00014873,2]
[401073825,1767905441027,-152.0,0.00014873,2]
[401073827,1767905441036,-302.72600049,0.000149,2]
[401073829,1767905441045,-302.72600048,0.000149,2]
[401073832,1767905441055,-302.72600048,0.000149,2]
[401073833,1767905441065,-864.0,0.00014902,2]
[401073836,1767905441076,-1851.48708989,0.00014916,2]
[401073838,1767905441087,-2000.0,0.00014916,2]
[401073840,1767905441099,-2000.0,0.00014916,2]
[401073842,1767905441109,-510.32213921,0.00014916,2]
[401073843,1767905441118,-2000.0,0.00014916,2]